Cogmind - Beta 11 X2 *** ADVENTURER MODE // 2021.02.20 @ 15:39:28 Player: Luigi Panache Result: Destroyed by G-50 Soldier with Heavy Laser Performance ------------- Evolutions (5) 2500 Regions Visited (20) 4000 Robots Destroyed (197) 985 Value Destroyed (8238) 8238 Prototype IDs (24) 480 Alien Tech Used (0) 0 Bonus (6595) 6595 TOTAL SCORE: 22798 Bonus ------- High Alert Combat Kills 506 Follower Combat Kills 1624 Entered Garrisons 1400 Used RIF Installer 3000 Aligned with FarCom 300 Friendly Fire -235 Cogmind --------- Core Integrity 0/1000 Matter 270/300 Energy 44/100 System Corruption 1% Temperature Cool (9) Movement Core (50) Location -5/Garrison Parts ------- > --- POWER (1) -------- (None) > --- PROPULSION (4) --- (None) > --- UTILITY (10) ----- Hacking Suite Advanced Hacking Suite Relay Coupler [NC] (33) Relay Coupler [Grunt] (31) Relay Coupler [Grunt] (41) Relay Coupler [Brawler] (49) Relay Coupler [Hunter] (31) > --- WEAPON (2) ------- (None) > --- INVENTORY (5) ---- Medium Storage Unit High-capacity Matter Pod (200) Advanced Plasma Cannon Gauss Rifle Improved Proton Missile Launcher Peak State ------------ > --- POWER ------------ Fission Core > --- PROPULSION ------- Armored Huge Wheel > --- UTILITY ---------- Humpback Hacking Suite Hacking Suite Hacking Suite System Shield Relay Coupler [NC] Relay Coupler [Grunt] Relay Coupler [Specialist] Relay Coupler [Hunter] > --- WEAPON ----------- Heavy Rocket Launcher Improved Datajack > --- INVENTORY -------- Deuterium Engine Micro Nuclear Core Wheel Compact Wheel High-capacity Storage Unit High-capacity Matter Pod Improved Propulsion Shielding Light Armor Plating Improved Light Armor Plating Improved Light Armor Plating Improved Light Armor Plating Improved Medium Armor Plating System Shield Relay Coupler [NC] Relay Coupler [NC] Relay Coupler [NC] Relay Coupler [ARC] Relay Coupler [ARC] Relay Coupler [Swarmer] Relay Coupler [Swarmer] Relay Coupler [Grunt] Relay Coupler [Grunt] Relay Coupler [Brawler] Relay Coupler [Brawler] Relay Coupler [Sentry] Relay Coupler [Demolisher] High-powered Shock Rifle Gauss Rifle Flak Gun Hypervelocity Gauss Rifle Shock Bomb Launcher Heavy Rocket Launcher Heavy Rocket Launcher Datajack [Rating: 58] Favorites ----------- Power Deuterium Engine Engine Deuterium Engine Power Core Nuclear Core Propulsion Wheel Treads Light Treads Leg Carbon-fiber Leg Wheel Wheel Flight Unit VTOL Module Utility Hacking Suite Device Hardlight Generator Storage Humpback Processor Visual Processing Unit Hackware Hacking Suite Protection Improved Propulsion Shielding Weapon Gauss Rifle Energy Gun Small Laser Energy Cannon Advanced Plasma Cannon Ballistic Gun Gauss Rifle Launcher Shock Bomb Launcher Special Weapon Mining Laser Piercing Weapon Heavy Pick Special Melee Weapon Improved Datajack Build | -11 -10 -10 -10 -9 -8 -8 -8 -8 -7 -7 -7 -7 -6 -6 -6 -6 -6 -6 -5 -5 ------- Run | Scr Mat Min Exi Min Mat Gar Mat Gar Fac Gar Fac Gar Fac Was Fac Gar Fac Gar Fac Gar Slots Evolved 10 | . . . . . 4 . . . 2 . . . 2 . . . . . 2 . Power . | . . . . . . . . . . . . . . . . . . . . . Propulsion 2 | . . . . . . . . . . . . . . . . . . . 2 . Utility 8 | . . . . . 4 . . . 2 . . . 2 . . . . . . . Weapon . | . . . . . . . . . . . . . . . . . . . . . Parts Attached 166 | 2 1 11 3 3 19 20 25 5 2 2 3 2 8 1 . 14 . 10 20 15 Power 9 | . . 2 . . 2 . 1 . . . . . 1 . . . . 1 . 2 Engine 4 | . . 1 . . 1 . 1 . . . . . . . . . . . . 1 Core 5 | . . 1 . . 1 . . . . . . . 1 . . . . 1 . 1 Reactor . | . . . . . . . . . . . . . . . . . . . . . Propulsion 35 | 2 . 2 2 2 2 8 8 . . . . . 1 . . 1 . . 3 4 Treads 8 | 2 . 2 . . . 2 . . . . . . . . . . . . 2 . Leg 1 | . . . . . . . . . . . . . . . . . . . . 1 Wheel 23 | . . . 2 2 2 6 8 . . . . . 1 . . 1 . . 1 . Hover . | . . . . . . . . . . . . . . . . . . . . . Flight 3 | . . . . . . . . . . . . . . . . . . . . 3 Utility 53 | . 1 1 1 . 7 5 7 4 2 1 . . 3 . . 6 . 3 6 6 Device 2 | . . . . . 2 . . . . . . . . . . . . . . . Storage 9 | . . . 1 . . 1 1 2 . . . . . . . 1 . . 3 . Processor 5 | . 1 1 . . 1 . . . . . . . 1 . . 1 . . . . Hackware 25 | . . . . . 3 1 3 . 1 1 . . 2 . . 3 . 3 2 6 Protection 12 | . . . . . 1 3 3 2 1 . . . . . . 1 . . 1 . Artifact . | . . . . . . . . . . . . . . . . . . . . . Weapon 69 | . . 6 . 1 8 7 9 1 . 1 3 2 3 1 . 7 . 6 11 3 Energy Gun 4 | . . 3 . . 1 . . . . . . . . . . . . . . . Energy Cannon 2 | . . . . . . . . . . . 1 . . . . . . . 1 . Ballistic Gun 34 | . . 1 . 1 5 4 5 . . 1 . . 2 1 . 2 . 5 7 . Ballistic Cannon . | . . . . . . . . . . . . . . . . . . . . . Launcher 16 | . . 1 . . 2 3 4 . . . . 1 1 . . 3 . . 1 . Special Weapon 1 | . . 1 . . . . . . . . . . . . . . . . . . Impact Weapon . | . . . . . . . . . . . . . . . . . . . . . Slashing Weapon . | . . . . . . . . . . . . . . . . . . . . . Piercing Weapon 2 | . . . . . . . . . . . . . . . . . . . 1 1 Special Melee Weapon 10 | . . . . . . . . 1 . . 2 1 . . . 2 . 1 1 2 Unidentified Prototypes 1 | . . . . . 1 . . . . . . . . . . . . . . . Parts Lost 82 | . . 10 . 1 5 8 4 . . 1 . . . . . 25 . 6 10 12 Power 7 | . . 2 . . . 1 . . . . . . . . . 2 . . 1 1 Propulsion 19 | . . 2 . . . 3 3 . . . . . . . . 3 . 1 3 4 Utility 32 | . . 1 . . 3 2 . . . . . . . . . 15 . 3 4 4 Weapon 24 | . . 5 . 1 2 2 1 . . 1 . . . . . 5 . 2 2 3 Highest Loss Streak 20 | . . 6 . 1 2 3 2 . . 1 . . . . . 20 . 2 9 11 Average Slot Usage (%) 84 | . 91 92 88 84 83 81 86 89 88 88 91 92 86 86 86 81 86 77 83 74 Engine 4 | . 14 11 14 14 5 . 8 9 7 7 7 7 . . . . . . . . Core 2 | . . 2 . . 3 5 . . . . . . 5 6 6 1 . 1 4 2 Treads 2 | . 28 26 6 . . . . . . . . . . . . . . . 5 . Wheel 11 | . . . 21 28 18 16 16 18 15 15 15 15 11 6 6 5 6 1 2 . Storage 8 | . 14 14 14 14 9 9 9 9 7 7 7 7 6 6 6 5 6 6 5 4 Processor 3 | . 6 13 3 . 2 9 . . . . . . 2 . . 2 6 6 5 . Hackware 25 | . . . . . 16 10 31 24 23 28 30 30 31 40 40 49 46 45 42 40 Protection 7 | . . . . . 2 13 3 11 19 16 15 15 13 13 13 3 6 2 3 . Energy Gun 2 | . 28 8 14 14 6 . . . . . . . . . . . . . . . Ballistic Gun 7 | . . 7 . 12 8 15 12 1 . 5 7 4 2 13 13 2 6 7 10 . Launcher 2 | . . 6 . . 2 1 4 9 7 3 . 3 4 . . 3 6 . . . Special Melee Weapon 1 | . . . . . . . . 7 7 1 6 6 4 . . 4 . 3 . 4 Naked Turns . | . . . . . . . . . . . . . . . . . . . . . Heaviest Build 303 | 13 13 14 247 247 267 262 303 261 267 268 263 268 267 267 267 267 20 20 27 23 Greatest Support 46 | 40 40 40 40 26 24 44 26 20 20 20 20 20 28 28 28 28 12 12 46 15 Greatest Overweight (x) 86 | . . 3 9 12 13 83 86 13 13 13 13 13 13 9 9 9 1 6 6 7 Average Overweight (x) 7 | . . . 6 10 10 10 11 12 12 13 13 13 12 9 9 4 1 2 1 2 Largest Inventory Capacity 35 | 8 8 8 35 35 35 35 35 35 35 35 35 35 35 35 35 35 5 5 10 10 Average Capacity 26 | 8 8 8 28 35 35 34 35 35 35 35 35 35 35 35 35 21 5 5 7 9 Most Carried 35 | 6 8 8 18 26 35 35 35 35 35 35 35 35 35 35 35 35 5 5 10 10 Average Carried 24 | 6 7 6 11 21 32 31 33 34 34 34 35 35 34 35 35 21 5 4 7 8 Final Capacity 35 | 8 8 8 35 35 35 35 35 35 35 35 35 35 35 35 35 5 5 5 10 5 Final Carried 35 | 6 8 5 18 26 35 35 35 35 35 35 35 35 35 35 35 5 5 5 10 5 Class Distribution -------------------- 28% | Hauler-Mutant 23% | Botlord-Mutant 21% | Bothacker-Mutant 15% | Hacker-Mutant 6% | Mutant Dominant Class ---------------- Mutant | -10/Materials Mutant | -10/Mines Hauler-Mutant | -10/Exiles Hauler-Mutant | -9/Mines Hauler-Mutant | -8/Materials Hauler-Mutant | -8/Garrison Hacker-Mutant | -8/Materials Bothacker-Mutant | -8/Garrison Bothacker-Mutant | -7/Factory Bothacker-Mutant | -7/Garrison Bothacker-Mutant | -7/Factory Bothacker-Mutant | -7/Garrison Botlord-Mutant | -6/Factory Botlord-Mutant | -6/Waste Botlord-Mutant | -6/Factory Botlord-Mutant | -6/Garrison Hacker-Mutant | -6/Factory Bothacker-Mutant | -6/Garrison Botlord-Mutant | -5/Factory Botlord-Mutant | -5/Garrison Resources | -11 -10 -10 -10 -9 -8 -8 -8 -8 -7 -7 -7 -7 -6 -6 -6 -6 -6 -6 -5 -5 ----------- Run | Scr Mat Min Exi Min Mat Gar Mat Gar Fac Gar Fac Gar Fac Was Fac Gar Fac Gar Fac Gar Matter Collected 4854 | 161 69 204 60 35 503 770 892 95 155 117 . 126 . . . 659 . 443 460 105 Remotely . | . . . . . . . . . . . . . . . . . . . . . Salvage Created 7333 | . 111 542 . 151 1285 1017 1876 105 . 332 . 410 238 . . 748 . 100 352 66 Parts 407 | . 9 37 . 14 67 40 121 9 . 18 . 15 15 . . 34 . 5 17 6 Haulers Intercepted 6 | . 1 . . . 1 . 4 . . . . . . . . . . . . . Recyclers Shooed 6 | . . . . 1 1 . 2 . . . . . . . . . . . 2 . Parts Field Recycled . | . . . . . . . . . . . . . . . . . . . . . Retrieved Matter . | . . . . . . . . . . . . . . . . . . . . . Parts Self-Destructed . | . . . . . . . . . . . . . . . . . . . . . Prevented . | . . . . . . . . . . . . . . . . . . . . . Kills | -11 -10 -10 -10 -9 -8 -8 -8 -8 -7 -7 -7 -7 -6 -6 -6 -6 -6 -6 -5 -5 ------- Run | Scr Mat Min Exi Min Mat Gar Mat Gar Fac Gar Fac Gar Fac Was Fac Gar Fac Gar Fac Gar Combat Hostiles Destroyed 151 | . 1 18 . 4 26 26 21 2 . 8 . 10 6 . . 20 . 3 3 3 Melee 5 | . . 2 . . . . . . . . . . . . . . . . . 3 Guns 48 | . 1 6 . 4 7 11 8 . . 1 . . . . . 4 . 3 3 . AOE 91 | . . 10 . . 18 13 11 2 . 7 . 8 6 . . 16 . . . . Classes Destroyed 16 | . 3 2 . 2 7 . . . . . . . . . . 1 . . 1 . Worker 12 | . . . . 1 2 . 8 . . . . . 1 . . . . . . . Builder 7 | . . . . . 2 . 5 . . . . . . . . . . . . . Tunneler 5 | . . 2 . . 1 . 1 . . . . . 1 . . . . . . . Hauler 6 | . 1 . . . 1 . 4 . . . . . . . . . . . . . Recycler 3 | . . . . 1 . . 1 . . . . . . . . . . . 1 . Mechanic 1 | . . . . . 1 . . . . . . . . . . . . . . . Operator 3 | . . . . . 1 . 2 . . . . . . . . . . . . . Watcher 8 | . 1 . . . 2 . 5 . . . . . . . . . . . . . Swarmer 47 | . . 6 . 4 . 7 4 . . 3 . 6 4 . . 8 . 2 . 3 Grunt 74 | . 1 12 . . 19 12 10 . . 4 . 4 2 . . 9 . 1 . . Brawler 6 | . . . . . 3 2 . . . . . . . . . 1 . . . . Duelist 3 | . . . . . 1 . 1 . . . . . . . . 1 . . . . Sentry 11 | . . . . . 2 4 4 . . . . . . . . . . . 1 . Specialist 1 | . . . . . . . . . . . . . . . . 1 . . . . Hunter 9 | . . . . . 1 1 2 2 . 1 . . . . . 1 . . 1 . Programmer 1 | . . . . . . . . . . . . . . . . . . . 1 . Best Kill Streak 12 | . 1 7 . 4 12 8 10 1 . 6 . 6 4 . . 8 . 2 1 1 Combat Bots Only 8 | . 1 7 . 4 7 8 6 1 . 6 . 6 3 . . 8 . 2 1 1 Max Kills in Single Turn 4 | . 1 3 . 1 2 3 3 1 . 3 . 2 4 . . 4 . 1 1 1 Gunslinging . | . . . . . . . . . . . . . . . . . . . . . Exploded 3 | . . 3 . . 2 3 2 1 . 3 . 2 3 . . 3 . . . . Melee 1 | . . 1 . . . . . . . . . . . . . . . . . 1 Uniques/NPCs Destroyed . | . . . . . . . . . . . . . . . . . . . . . Combat | -11 -10 -10 -10 -9 -8 -8 -8 -8 -7 -7 -7 -7 -6 -6 -6 -6 -6 -6 -5 -5 -------- Run | Scr Mat Min Exi Min Mat Gar Mat Gar Fac Gar Fac Gar Fac Was Fac Gar Fac Gar Fac Gar Damage Taken 8925 | . 53 794 . 204 793 903 987 40 27 229 24 403 351 . . 1106 126 355 1371 1159 Core 2002 | . . 89 . 48 90 152 136 . 14 . . 22 56 . . 191 93 102 384 625 Absorbed by Shields 165 | . . . . . 99 33 . . . . . . . . . . . . . 33 Core Remaining (%) 63 | 100 . . . 45 . . . 31 . . . 94 . . . . . 48 . . Volleys Fired 435 | . 10 37 . 20 48 100 91 4 . 19 2 14 8 . . 54 . 10 18 . Largest 2 | . 2 2 . 2 2 2 2 1 . 2 1 1 2 . . 2 . 2 2 . Hottest 98 | . 80 80 . 60 86 64 66 36 . 64 28 36 56 . . 61 . 60 98 . Shots Fired 581 | . 20 54 . 25 66 126 126 4 . 21 2 14 13 . . 60 . 15 35 . Gun 416 | . 20 40 . 25 40 103 89 . . 13 2 2 10 . . 23 . 15 34 . Cannon 1 | . . . . . . . . . . . . . . . . . . . 1 . Launcher 164 | . . 14 . . 26 23 37 4 . 8 . 12 3 . . 37 . . . . Special . | . . . . . . . . . . . . . . . . . . . . . Kinetic 345 | . . 11 . 5 38 103 89 . . 13 2 2 10 . . 23 . 15 34 . Thermal 47 | . 10 14 . 20 2 . . . . . . . . . . . . . 1 . Explosive 62 | . . 14 . . 11 3 . . . . . . . . . 34 . . . . Electromagnetic 127 | . 10 15 . . 15 20 37 4 . 8 . 12 3 . . 3 . . . . Robot Hit Streak 34 | . 20 34 . 2 28 28 21 6 . 22 1 9 10 . . 22 . 4 14 . Robot Miss Streak 7 | . . 3 . 7 3 3 3 . . . 1 1 2 . . 2 . 1 1 . Penetration Max 2 | . . . . . 1 1 2 . . . . . . . . 1 . . 1 . Secondary Targets 5 | . . 1 . . 2 . 1 . . . . . . . . . . 1 . . Max Gunslinging Chain 1 | . . 1 . . 1 . 1 . . . . . . . . . . 1 . . Shots Hit Robots 488 | . 20 44 . 10 54 94 100 8 3 16 1 14 13 . . 54 . 17 30 10 Core Hits 364 | . 5 37 . 7 72 62 76 3 . 15 . 13 13 . . 48 . 3 7 3 Critical Hits 34 | . . . . . . 1 24 . . 1 . . . . . 6 . 1 1 . Critical Kills 17 | . . . . . . 1 11 . . . . . . . . 3 . 1 1 . Critical Parts Destroyed 17 | . . . . . . . 13 . . 1 . . . . . 3 . . . . Melee Attacks 50 | . . . . . . . . 7 3 . . 2 1 . . 10 . 12 1 14 Impact . | . . . . . . . . . . . . . . . . . . . . . Slashing . | . . . . . . . . . . . . . . . . . . . . . Piercing 7 | . . . . . . . . . . . . . . . . . . . . 7 Sneak Attacks 28 | . . . . . . . . 7 3 . . . 1 . . 3 . 9 1 4 Combat Hostiles 7 | . . . . . . . . . . . . . . . . 3 . . . 4 Follow-up Attacks . | . . . . . . . . . . . . . . . . . . . . . Damage Inflicted 15956 | . 250 1233 . 116 2814 2429 2586 110 . 682 . 872 791 . . 3133 . 116 674 150 Guns 4851 | . 250 351 . 116 674 1288 768 . . 171 . 23 284 . . 136 . 116 674 . Cannons . | . . . . . . . . . . . . . . . . . . . . . Explosions 10866 | . . 811 . . 2140 1141 1800 110 . 511 . 849 507 . . 2997 . . . . Melee 150 | . . . . . . . . . . . . . . . . . . . . 150 Ramming 89 | . . 71 . . . . 18 . . . . . . . . . . . . . Kinetic 4202 | . . 91 . 17 634 1288 768 . . 171 . 23 284 . . 136 . 116 674 . Thermal 1412 | . 113 133 . 99 97 . 295 . . 172 . 155 348 . . . . . . . Explosive 5362 | . . 785 . . 1449 360 . . . . . . . . . 2768 . . . . Electromagnetic 4741 | . 137 153 . . 634 781 1505 110 . 339 . 694 159 . . 229 . . . . Impact . | . . . . . . . . . . . . . . . . . . . . . Slashing . | . . . . . . . . . . . . . . . . . . . . . Piercing 150 | . . . . . . . . . . . . . . . . . . . . 150 Highest Corruption 14 | . . 1 1 1 3 3 4 4 . . 1 1 2 14 14 14 14 14 1 1 Average Corruption 5 | . . 1 1 1 3 3 3 4 . . 1 1 1 10 14 14 14 14 1 1 Corruption Purged . | . . . . . . . . . . . . . . . . . . . . . Effects 246 | . . 1 1 3 3 46 43 8 . . . . 5 9 13 57 12 42 1 2 Message Errors 52 | . . 1 1 1 1 11 8 3 . . . . 1 1 2 12 3 6 1 . Matter Fused 60 | . . . . . 1 12 19 1 . . . . . 1 4 12 1 9 . . Heat Flow Errors 23 | . . . . . . 6 4 . . . . . 1 1 1 5 . 5 . . Energy Discharges 31 | . . . . 1 1 11 4 1 . . . . 1 . 1 7 1 2 . 1 Parts Rejected 1 | . . . . . . . . . . . . . . 1 . . . . . . Data Loss (minor) 31 | . . . . 1 . 5 8 3 . . . . 2 1 . 4 1 5 . 1 Data Loss (major) 9 | . . . . . . . . . . . . . . 2 1 3 1 2 . . Misfires 4 | . . . . . . . . . . . . . . . . 2 . 2 . . Alerts 5 | . . . . . . . . . . . . . . . 1 . 2 2 . . Misdirections 26 | . . . . . . . . . . . . . . 2 3 10 3 8 . . Weapon Failures 4 | . . . . . . 1 . . . . . . . . . 2 . 1 . . Overload Shots . | . . . . . . . . . . . . . . . . . . . . . Overflow Damage 283 | . . 12 . . 93 12 58 . . . . 46 . . . 62 . . . . Projectiles . | . . . . . . . . . . . . . . . . . . . . . Explosions 280 | . . 12 . . 93 12 55 . . . . 46 . . . 62 . . . . Melee 3 | . . . . . . . 3 . . . . . . . . . . . . . Knockbacks . | . . . . . . . . . . . . . . . . . . . . . Impact . | . . . . . . . . . . . . . . . . . . . . . Kinetic . | . . . . . . . . . . . . . . . . . . . . . Secondary . | . . . . . . . . . . . . . . . . . . . . . Self-Inflicted Damage 659 | . . 131 . . 7 75 187 . . 45 . 12 75 . . 127 . . . . Shots 41 | . . 5 . . 2 4 15 . . 4 . 2 3 . . 6 . . . . Rammed 45 | . . 44 . . . . 1 . . . . . . . . . . . . . Targets Rammed 47 | . . 46 . . . . 1 . . . . . . . . . . . . . Kicked . | . . . . . . . . . . . . . . . . . . . . . Crushed 2 | . . 2 . . . . . . . . . . . . . . . . . . Highest Temperature 267 | . 132 146 . 40 24 236 267 . . 4 . 26 87 241 186 233 . 228 22 . Average Temperature 64 | . 55 53 . 19 7 62 93 . . 2 . 12 37 133 105 86 . 87 16 . Received Heat Transfer 2945 | . 12 441 . . 368 354 279 . 12 27 . 198 63 . . 342 . . 489 360 Effects 1 | . . . . . . . 1 . . . . . . . . . . . . . Energy Bleed 1 | . . . . . . . 1 . . . . . . . . . . . . . Siege Activations . | . . . . . . . . . . . . . . . . . . . . . Robots Corrupted 8 | . . . . . 1 2 3 . . . . 2 . . . . . . . . Combat Hostiles 7 | . . . . . 1 2 2 . . . . 2 . . . . . . . . Parts Fried 30 | . . 1 . . 1 8 13 . . 1 . 6 . . . . . . . . Impact Corruptions 1 | . . . . . . . 1 . . . . . . . . . . . . . Robots Melted . | . . . . . . . . . . . . . . . . . . . . . Combat Hostiles . | . . . . . . . . . . . . . . . . . . . . . Parts Melted 3 | . . . . 2 . . . . . 1 . . . . . . . . . . Heat Transferred 1899 | . 250 300 . 225 174 . 400 . . 200 . 150 200 . . . . . . . Parts Sabotaged . | . . . . . . . . . . . . . . . . . . . . . Parts Stolen . | . . . . . . . . . . . . . . . . . . . . . Parts Stripped . | . . . . . . . . . . . . . . . . . . . . . Power Chain Reactions 23 | . . . . . 3 1 10 1 . 3 . 3 2 . . . . . . . Missiles Intercepted . | . . . . . . . . . . . . . . . . . . . . . Alert | -11 -10 -10 -10 -9 -8 -8 -8 -8 -7 -7 -7 -7 -6 -6 -6 -6 -6 -6 -5 -5 ------- Run | Scr Mat Min Exi Min Mat Gar Mat Gar Fac Gar Fac Gar Fac Was Fac Gar Fac Gar Fac Gar Peak Influence 1360 | . 47 339 . 105 725 1360 648 423 212 256 128 466 352 28 12 444 204 452 205 215 Initial 571 | . . . . . 34 112 571 117 192 1 116 78 207 28 4 6 201 125 205 . Average 316 | . 19 178 . 96 343 898 256 221 150 208 117 248 182 17 5 256 202 308 96 145 Maximum Alert Level 4 | . . 1 . . 3 4 2 2 1 1 . 2 1 . . 2 1 2 1 1 Low Security (%) 47 | 100 100 63 . 100 42 3 49 74 35 17 100 54 63 100 100 27 . 30 70 98 Level 1 29 | . . 36 . . 10 19 26 7 64 82 . 13 36 . . 67 100 37 29 1 Level 2 10 | . . . . . 37 3 23 18 . . . 32 . . . 4 . 32 . . Level 3 6 | . . . . . 8 36 . . . . . . . . . . . . . . Level 4 6 | . . . . . . 36 . . . . . . . . . . . . . . Level 5 . | . . . . . . . . . . . . . . . . . . . . . High Security . | . . . . . . . . . . . . . . . . . . . . . Max Security . | . . . . . . . . . . . . . . . . . . . . . Squads Dispatched 18 | . . . . . 4 . 6 . 1 . 1 . 3 . . . . . 3 . Investigation 5 | . . . . . . . 2 . . . . . 2 . . . . . 1 . Extermination 4 | . . . . . . . . . 1 . 1 . 1 . . . . . 1 . Reinforcement 8 | . . . . . 3 . 4 . . . . . . . . . . . 1 . Assault 1 | . . . . . 1 . . . . . . . . . . . . . . . Garrison . | . . . . . . . . . . . . . . . . . . . . . Intercept . | . . . . . . . . . . . . . . . . . . . . . Construction Impeded 4 | . . . . . 2 . 2 . . . . . . . . . . . . . Haulers Reinforced 1 | . . . . . . . . . . . . . . . . . . . 1 . Stealth | -11 -10 -10 -10 -9 -8 -8 -8 -8 -7 -7 -7 -7 -6 -6 -6 -6 -6 -6 -5 -5 --------- Run | Scr Mat Min Exi Min Mat Gar Mat Gar Fac Gar Fac Gar Fac Was Fac Gar Fac Gar Fac Gar Distress Signals 8 | . . . . . 2 . 5 . . . . . . . . . . . 1 . Communications Jammed . | . . . . . . . . . . . . . . . . . . . . . Distress Signals . | . . . . . . . . . . . . . . . . . . . . . Times Spotted 271 | . 2 18 . 4 40 38 35 12 2 9 . 15 8 5 1 34 1 14 15 18 Peak Tracking Total 11 | . 1 3 . 3 5 6 7 3 1 6 1 8 4 6 1 6 1 7 7 11 Tactical Retreats 17 | . . . . . . 2 2 . . . . 1 2 . . 5 . 2 . 3 Traps | -11 -10 -10 -10 -9 -8 -8 -8 -8 -7 -7 -7 -7 -6 -6 -6 -6 -6 -6 -5 -5 ------- Run | Scr Mat Min Exi Min Mat Gar Mat Gar Fac Gar Fac Gar Fac Was Fac Gar Fac Gar Fac Gar Traps Triggered 23 | . 1 . . . . 8 1 1 . . 1 . 3 . . 1 . 3 1 3 Indirectly 2 | . . . . . . 1 1 . . . . . . . . . . . . . Trap Hack Attempts 22 | . . . . . . . . . . . . 4 . . . 6 . 12 . . Triggered . | . . . . . . . . . . . . . . . . . . . . . Disarmed . | . . . . . . . . . . . . . . . . . . . . . Reprogrammed 5 | . . . . . . . 1 . . . . 1 . . . . . 3 . . Reused 1 | . . . . . . . 1 . . . . . . . . . . . . . Traps Extracted . | . . . . . . . . . . . . . . . . . . . . . Installed . | . . . . . . . . . . . . . . . . . . . . . Triggered 1 | . . . . . . . 1 . . . . . . . . . . . . . Machines | -11 -10 -10 -10 -9 -8 -8 -8 -8 -7 -7 -7 -7 -6 -6 -6 -6 -6 -6 -5 -5 ---------- Run | Scr Mat Min Exi Min Mat Gar Mat Gar Fac Gar Fac Gar Fac Was Fac Gar Fac Gar Fac Gar Machines Disabled 33 | . . 1 . . 5 4 8 . . 2 . 1 4 . . 2 . 1 4 1 Max in Single Turn 4 | . . 1 . . 2 1 3 . . 1 . 1 4 . . 1 . 1 1 1 Garrison Relay 9 | . . . . . . 4 . . . 1 . 1 . . . 1 . 1 . 1 Machines Sabotaged . | . . . . . . . . . . . . . . . . . . . . . Garrisons Compromised . | . . . . . . . . . . . . . . . . . . . . . Overloaded Fab Kills . | . . . . . . . . . . . . . . . . . . . . . Fab Network Shutdowns . | . . . . . . . . . . . . . . . . . . . . . Hacking | -11 -10 -10 -10 -9 -8 -8 -8 -8 -7 -7 -7 -7 -6 -6 -6 -6 -6 -6 -5 -5 --------- Run | Scr Mat Min Exi Min Mat Gar Mat Gar Fac Gar Fac Gar Fac Was Fac Gar Fac Gar Fac Gar Machines Accessed 33 | . 5 . 1 . 5 . 9 . 1 . 1 . 3 . 2 . 2 . 4 . Terminals 17 | . 4 . . . 4 . 6 . . . . . 1 . 1 . . . 1 . Fabricators 3 | . . . . . . . . . . . . . 1 . . . 1 . 1 . Repair Stations 3 | . . . . . . . 2 . . . . . 1 . . . . . . . Recycling Units 2 | . 1 . . . . . . . . . . . . . . . . . 1 . Scanalyzers . | . . . . . . . . . . . . . . . . . . . . . Garrison Access 7 | . . . . . 1 . 1 . 1 . 1 . . . 1 . 1 . 1 . Total Hacks 95 | . 19 . 1 . 9 . 34 . 1 . 1 . 7 . 4 . 4 . 15 . Successful 61 | . 8 . 1 . 6 . 27 . 1 . 1 . 3 . 4 . 4 . 6 . Failed 33 | . 11 . . . 3 . 6 . . . . . 4 . . . . . 9 . Catastrophic 3 | . 1 . . . 1 . 1 . . . . . . . . . . . . . Database Lockouts 1 | . . . . . . . 1 . . . . . . . . . . . . . Manual 44 | . 14 . 1 . 8 . 11 . . . . . 2 . 2 . 1 . 5 . Terminals 56 | . 15 . . . 8 . 22 . . . . . 2 . 3 . . . 6 . Fabricators 11 | . . . . . . . . . . . . . 3 . . . 3 . 5 . Repair Stations 12 | . . . . . . . 10 . . . . . 2 . . . . . . . Recycling Units 7 | . 4 . . . . . . . . . . . . . . . . . 3 . Scanalyzers . | . . . . . . . . . . . . . . . . . . . . . Garrison Access 8 | . . . . . 1 . 2 . 1 . 1 . . . 1 . 1 . 1 . Terminal Hacks 28 | . 5 . 1 . 3 . 14 . . . . . . . 3 . . . 2 . Part Schematic 7 | . 3 . . . . . 2 . . . . . . . 1 . . . 1 . Branch Access Points 1 | . . . . . . . . . . . . . . . 1 . . . . . Emergency Access Points 1 | . . . . . . . 1 . . . . . . . . . . . . . Machine Index 1 | . . . . . . . 1 . . . . . . . . . . . . . Terminal Index 1 | . 1 . . . . . . . . . . . . . . . . . . . Fabricator Index 1 | . . . . . . . . . . . . . . . 1 . . . . . Garrison Index 1 | . . . . . . . . . . . . . . . . . . . 1 . Unreport Threat 7 | . . . . . 2 . 5 . . . . . . . . . . . . . Locate Traps 2 | . . . . . . . 2 . . . . . . . . . . . . . Reprogram Traps 1 | . . . . . . . 1 . . . . . . . . . . . . . Patrol Status 1 | . . . . . . . 1 . . . . . . . . . . . . . Recall Reinforcements 1 | . . . . . 1 . . . . . . . . . . . . . . . Hauler Manifests 1 | . 1 . . . . . . . . . . . . . . . . . . . Zone Layout 1 | . . . . . . . 1 . . . . . . . . . . . . . EX-Prototype ID Bank 1 | . . . 1 . . . . . . . . . . . . . . . . . Fabricator Hacks 4 | . . . . . . . . . . . . . 1 . . . 2 . 1 . Load Schematic 1 | . . . . . . . . . . . . . 1 . . . . . . . Build 3 | . . . . . . . . . . . . . . . . . 2 . 1 . Repair Station Hacks 12 | . . . . . . . 10 . . . . . 2 . . . . . . . Scan Component 6 | . . . . . . . 5 . . . . . 1 . . . . . . . Repair 6 | . . . . . . . 5 . . . . . 1 . . . . . . . Recycling Unit Hacks 1 | . . . . . . . . . . . . . . . . . . . 1 . Retrieve Components 1 | . . . . . . . . . . . . . . . . . . . 1 . Scanalyzer . | . . . . . . . . . . . . . . . . . . . . . Garrison Access Hacks 7 | . . . . . 1 . 1 . 1 . 1 . . . 1 . 1 . 1 . Unlock Access 7 | . . . . . 1 . 1 . 1 . 1 . . . 1 . 1 . 1 . Unauthorized Hacks 9 | . 3 . . . 2 . 2 . . . . . . . . . 1 . 1 . Terminals 5 | . 2 . . . 2 . 1 . . . . . . . . . . . . . Assimilate 1 | . . . . . . . 1 . . . . . . . . . . . . . Botnet 3 | . 2 . . . 1 . . . . . . . . . . . . . . . Operators 1 | . . . . . 1 . . . . . . . . . . . . . . . Fabricators 2 | . . . . . . . . . . . . . . . . . 1 . 1 . Prioritize 2 | . . . . . . . . . . . . . . . . . 1 . 1 . Repair Stations . | . . . . . . . . . . . . . . . . . . . . . Recycling Units 1 | . 1 . . . . . . . . . . . . . . . . . . . Mask 1 | . 1 . . . . . . . . . . . . . . . . . . . Scanalyzers . | . . . . . . . . . . . . . . . . . . . . . Garrison Access 1 | . . . . . . . 1 . . . . . . . . . . . . . Eject 1 | . . . . . . . 1 . . . . . . . . . . . . . Data Cores Recovered . | . . . . . . . . . . . . . . . . . . . . . Used . | . . . . . . . . . . . . . . . . . . . . . Hacking Detections 26 | . 5 . . . 5 . 5 . 1 . 1 . 3 . 1 . 2 . 3 . Full Trace Events 4 | . . . . . . . 1 . . . . . 2 . . . . . 1 . Feedback Events . | . . . . . . . . . . . . . . . . . . . . . Feedback Blocked . | . . . . . . . . . . . . . . . . . . . . . Robot Schematics Acquired . | . . . . . . . . . . . . . . . . . . . . . Robots Built 9 | . . . . . . . . . . . . . . . . . 6 . 3 . Matter 756 | . . . . . . . . . . . . . . . . . 504 . 252 . Time 245 | . . . . . . . . . . . . . . . . . 201 . 44 . Total Robot Build Rating 36 | . . . . . . . . . . . . . . . . . 24 . 12 . Part Schematics Acquired 7 | . 3 . . . . . 2 . . . . . . . 1 . . . 1 . Parts Built . | . . . . . . . . . . . . . . . . . . . . . Matter . | . . . . . . . . . . . . . . . . . . . . . Time . | . . . . . . . . . . . . . . . . . . . . . Total Part Build Rating . | . . . . . . . . . . . . . . . . . . . . . Parts Repaired 6 | . . . . . . . 5 . . . . . 1 . . . . . . . Time 178 | . . . . . . . 166 . . . . . 12 . . . . . . . Parts Recycled . | . . . . . . . . . . . . . . . . . . . . . Recycled Matter . | . . . . . . . . . . . . . . . . . . . . . Retrieved Matter . | . . . . . . . . . . . . . . . . . . . . . Retrieved Components 2 | . . . . . . . . . . . . . . . . . . . 2 . Parts Scanalyzed . | . . . . . . . . . . . . . . . . . . . . . Part Schematics Acquired . | . . . . . . . . . . . . . . . . . . . . . Parts Damaged . | . . . . . . . . . . . . . . . . . . . . . Bothacking | -11 -10 -10 -10 -9 -8 -8 -8 -8 -7 -7 -7 -7 -6 -6 -6 -6 -6 -6 -5 -5 ------------ Run | Scr Mat Min Exi Min Mat Gar Mat Gar Fac Gar Fac Gar Fac Was Fac Gar Fac Gar Fac Gar Used RIF Installer 6 | . . . . . . 1 . 1 . 1 . 1 . . . 1 . 1 . . Coupler Efficiency 2 | . . . . . . . . . . 1 . 1 . . . . . . . . Zone Cloak 1 | . . . . . . . . . . . . . . . . 1 . . . . Patrol Navigation 1 | . . . . . . . . 1 . . . . . . . . . . . . Structural Interface 1 | . . . . . . . . . . . . . . . . . . 1 . . Robots Hacked 12 | . . . . . . . . . 1 . . 2 . . . 5 . 2 1 1 Non-combat 2 | . . . . . . . . . 1 . . . . . . . . . 1 . Combat 10 | . . . . . . . . . . . . 2 . . . 5 . 2 . 1 Robot Hacks Applied 15 | . . . . . . . . . 1 . . 2 . . . 7 . 2 1 2 scatter_targeting 1 | . . . . . . . . . . . . 1 . . . . . . . . amplify_resonance 1 | . . . . . . . . . . . . . . . . . . . 1 . go_dormant 1 | . . . . . . . . . . . . . . . . 1 . . . . overwrite_iff 3 | . . . . . . . . . . . . . . . . 2 . . . 1 streamctrl_high 1 | . . . . . . . . . . . . . . . . 1 . . . . formatsys_low 1 | . . . . . . . . . 1 . . . . . . . . . . . formatsys_high 7 | . . . . . . . . . . . . 1 . . . 3 . 2 . 1 Relay Couplers Released 37 | . . . . . . 14 4 . . 5 . 3 . . . 3 . 5 . 3 Ejected 4 | . . . . . . . 4 . . . . . . . . . . . . . Machine Destruction 33 | . . . . . . 14 . . . 5 . 3 . . . 3 . 5 . 3 Attached 15 | . . . . . . 1 . . 1 1 . . . . . 3 . 3 . 6 Robots Rewired 21 | . . . . . . 9 . 6 . . . . . . . . . 6 . . Allies Hacked 1 | . . . . . . . . . . . . . . . . . . . 1 . Hacks Repelled . | . . . . . . . . . . . . . . . . . . . . . Allies | -11 -10 -10 -10 -9 -8 -8 -8 -8 -7 -7 -7 -7 -6 -6 -6 -6 -6 -6 -5 -5 -------- Run | Scr Mat Min Exi Min Mat Gar Mat Gar Fac Gar Fac Gar Fac Was Fac Gar Fac Gar Fac Gar Total Allies 42 | . . . . . . 9 1 6 1 . . 1 . 1 . 5 6 8 3 1 Largest Group 10 | . . . . . . 4 1 6 4 3 3 3 . 1 . 2 6 10 4 1 Highest-Rated Group 372 | . . . . . . 63 10 190 115 61 61 56 . 31 . 67 180 372 126 29 Highest-Rated Ally 41 | . . . . . . 21 10 38 38 21 21 21 . 31 . 38 30 41 41 29 Total Orders 16 | . . . . . . 4 . 2 2 5 . 1 . . . . . 2 . . STAY 8 | . . . . . . 3 . 1 . 3 . . . . . . . 1 . . ROAM 1 | . . . . . . . . . . 1 . . . . . . . . . . FOLLOW 4 | . . . . . . 1 . 1 . 1 . . . . . . . 1 . . AID 3 | . . . . . . . . . 2 . . 1 . . . . . . . . Ally Attacks 244 | . . . . . . 50 . 24 11 . 3 37 . 8 . 20 . 48 33 10 Total Damage 5806 | . . . . . . 878 . 650 298 . 89 646 . 146 . 324 . 1458 1167 150 Kills 59 | . . . . . . 13 . 11 2 . 1 5 . . . 2 . 16 6 3 Allies Corrupted 1 | . . . . . . . 1 . . . . . . . . . . . . . Allies Melted . | . . . . . . . . . . . . . . . . . . . . . Intel | -11 -10 -10 -10 -9 -8 -8 -8 -8 -7 -7 -7 -7 -6 -6 -6 -6 -6 -6 -5 -5 ------- Run | Scr Mat Min Exi Min Mat Gar Mat Gar Fac Gar Fac Gar Fac Was Fac Gar Fac Gar Fac Gar Robot Analysis Total . | . . . . . . . . . . . . . . . . . . . . . Derelict Logs Recovered 2 | . . 1 . 1 . . . . . . . . . . . . . . . . Drone Launches . | . . . . . . . . . . . . . . . . . . . . . Drone Recoveries . | . . . . . . . . . . . . . . . . . . . . . Exploration | -11 -10 -10 -10 -9 -8 -8 -8 -8 -7 -7 -7 -7 -6 -6 -6 -6 -6 -6 -5 -5 ------------- Run | Scr Mat Min Exi Min Mat Gar Mat Gar Fac Gar Fac Gar Fac Was Fac Gar Fac Gar Fac Gar Turns Passed 16652 | 3 438 754 612 370 1225 2625 1972 589 539 887 291 635 1110 184 200 1073 235 840 1371 699 Spaces Moved 6111 | 1 244 359 294 131 415 842 499 207 182 301 101 173 349 78 85 496 97 376 678 203 Core 475 | . . 7 . . . 2 3 . . . . . . . . 25 . 207 176 55 Treads 776 | 1 244 352 91 . . 8 . . . . . . . . . . . . 80 . Legs 30 | . . . . . . . . . . . . . . . . . . . . 30 Wheels 4712 | . . . 203 131 415 832 496 207 182 301 101 173 349 78 85 471 97 169 422 . Hover . | . . . . . . . . . . . . . . . . . . . . . Flight 118 | . . . . . . . . . . . . . . . . . . . . 118 Fastest Speed 50 | 160 160 100 160 225 240 225 225 260 260 275 275 275 235 235 235 100 105 90 115 50 Average Speed 220 | 160 160 159 204 238 247 257 274 262 267 275 275 275 269 235 235 170 105 184 172 153 Slowest Speed 4350 | 160 160 200 225 260 275 4200 4350 275 275 275 275 275 275 235 235 350 105 350 350 435 Overloaded Moves . | . . . . . . . . . . . . . . . . . . . . . Propulsion Burnouts . | . . . . . . . . . . . . . . . . . . . . . Robots Hopped . | . . . . . . . . . . . . . . . . . . . . . Cave-ins Triggered . | . . . . . . . . . . . . . . . . . . . . . Exploration Rate (%) 37 | 2 38 66 65 39 44 73 49 41 6 33 4 47 15 67 5 80 5 51 21 42 Regions Visited 20 Branch Regions 3 Pre-discovered Areas . | . . . . . . . . . . . . . . . . . . . . . Known Exits Taken 7 | . . . . . 1 . 1 . 1 . 1 . . . 1 . 1 . 1 . Unknown Exits Taken 5 | 1 1 1 1 1 . . . . . . . . . . . . . . . . Scrap Searched 4 | . . 2 . 2 . . . . . . . . . . . . . . . . Spaces Dug 25 | . . . . . . . . . . . . . . . . 24 . . 1 . Terrain Destroyed 612 | . . 108 . . 183 50 66 8 . 4 . 8 17 . . 167 . . 1 . Melee . | . . . . . . . . . . . . . . . . . . . . . Projectile 4 | . . . . . . 3 . . . . . . . . . . . . 1 . AOE 608 | . . 108 . . 183 47 66 8 . 4 . 8 17 . . 167 . . . . Terrain Rammed . | . . . . . . . . . . . . . . . . . . . . . Walls Destroyed . | . . . . . . . . . . . . . . . . . . . . . Machines Disabled . | . . . . . . . . . . . . . . . . . . . . . Actions | -11 -10 -10 -10 -9 -8 -8 -8 -8 -7 -7 -7 -7 -6 -6 -6 -6 -6 -6 -5 -5 --------- Run | Scr Mat Min Exi Min Mat Gar Mat Gar Fac Gar Fac Gar Fac Was Fac Gar Fac Gar Fac Gar Total 8655 | 2 272 467 304 164 549 1179 979 250 233 345 113 321 505 79 85 655 230 508 842 573 Wait 1401 | . 14 11 . 5 36 31 332 13 43 16 3 126 133 1 . 65 133 37 104 298 Move 6092 | . 243 358 293 130 415 840 498 205 182 299 101 171 349 77 85 494 97 374 678 203 Hop . | . . . . . . . . . . . . . . . . . . . . . Pick Up 127 | . 3 3 6 6 17 49 16 3 2 4 1 1 1 . . 1 . 4 9 1 Fast Attach 78 | . 1 5 1 1 8 6 9 3 1 1 3 . 6 1 . 6 . 6 11 9 Attach 31 | . . 5 . . 3 7 4 1 1 . . . . . . 1 . 2 1 6 Detach 10 | . . . 1 . 1 . 1 2 . . . . 1 . . 1 . . 3 . Swap 57 | 2 . 1 2 2 8 7 12 1 . 1 . 2 2 . . 7 . 2 8 . Drop 82 | . 1 1 1 . 13 18 15 3 1 5 3 1 4 . . 1 . 4 9 2 Fire 435 | . 10 37 . 20 48 100 91 4 . 19 2 14 8 . . 54 . 10 18 . Melee 50 | . . . . . . . . 7 3 . . 2 1 . . 10 . 12 1 14 Ram 19 | . . 18 . . . . 1 . . . . . . . . . . . . . Kick . | . . . . . . . . . . . . . . . . . . . . . Crush 28 | . . 28 . . . . . . . . . . . . . . . . . . Escape Stasis 148 | . . . . . . 48 . 8 . . . . . . . 8 . 45 . 39 Rewire 75 | . . . . . . 73 . . . . . . . . . 1 . . . 1 Trap 22 | . . . . . . . . . . . . 4 . . . 6 . 12 . . Miscellaneous . | . . . . . . . . . . . . . . . . . . . . . Route ------- -11/Scrapyard -10/Materials (discovered 3 exits: [*Mat x2] / [*Min]) -10/Mines (discovered 2 exits: [*Mat] / *Exi) -10/Exiles -9/Mines (discovered 2 exits: *Mat x2) -8/Materials (discovered 2 exits: *Fac / Gar) -8/Garrison (discovered 3 exits: *Mat x3) -8/Materials (discovered 3 exits: *Fac x2 / Gar) -8/Garrison -7/Factory -7/Garrison -7/Factory -7/Garrison -6/Factory -6/Waste -6/Factory (discovered 3 exits: Low x2 / Gar) -6/Garrison (discovered 3 exits: *Fac x3) -6/Factory (discovered 2 exits: *Low / Gar) -6/Garrison -5/Factory (discovered 2 exits: [*Upp] / Gar) -5/Garrison History --------- Turn | Location | Event 4 | -11/Scrapyard | Discovered new exit (range 0) 4 | -11/Scrapyard | Entered Materials 115 | -10/Materials | Discovered new exit (range 6) 169 | -10/Materials | Discovered new exit (range 7) 308 | -10/Materials | Discovered new exit (range 7) 309 | -10/Materials | Build established: Mutant 442 | -10/Materials | Entered Mines 590 | -10/Mines | Destroyed 7 combat bots 629 | -10/Mines | Learned Materials garrison access intel 775 | -10/Mines | Discovered new exit (range 12) 926 | -10/Mines | Lost 3 parts (1p2w) 1056 | -10/Mines | Lost 6 parts (1p2n1u2w) 1188 | -10/Mines | Deemed a non-threat by the Exiles lab entrance 1190 | -10/Mines | Discovered new exit (range 5) 1196 | -10/Mines | Entered Exiles 1236 | -10/Exiles | Met 8R-AWN 1262 | -10/Exiles | Met EX-HEX 1444 | -10/Exiles | Met EX-BIN 1478 | -10/Exiles | Aligned with FarCom system 1480 | -10/Exiles | Given EX-Vault access code 1534 | -10/Exiles | Opened EX-Vault 1554 | -10/Exiles | Found Army-in-a-Box 1602 | -10/Exiles | Warned to stay clear of 0b10 Research branches 1633 | -10/Exiles | Build established: Hauler-Mutant 1668 | -10/Exiles | Met EX-DEC 1790 | -10/Exiles | Discovered new exit (range 10) 1808 | -10/Exiles | Left Exiles lab with Army-in-a-Box 1808 | -10/Exiles | Entered Mines 1822 | -9/Mines | Core integrity fell below 50% 2117 | -9/Mines | Discovered new exit (range 10) 2149 | -9/Mines | Discovered new exit (range 6) 2178 | -9/Mines | Entered Materials 2178 | -8/Materials | Evolved 4 slots: Utility x4 2179 | -8/Materials | Loaded intel: 1 garrison access location 2834 | -8/Materials | Destroyed 7 combat bots 2978 | -8/Materials | First assault squad dispatched 3002 | -8/Materials | Build established: Hacker-Mutant 3284 | -8/Materials | Discovered new exit (range 17) 3360 | -8/Materials | Build established: Hauler-Mutant 3403 | -8/Materials | Identified exit to Garrison 3403 | -8/Materials | Entered Garrison 3426 | -8/Garrison | Triggered checkpoint 3444 | -8/Garrison | Triggered checkpoint 3504 | -8/Garrison | Triggered checkpoint 4003 | -8/Garrison | Triggered checkpoint 4148 | -8/Garrison | Destroyed 8 combat bots 4290 | -8/Garrison | Triggered checkpoint 4591 | -8/Garrison | Garrison Relay disabled 4666 | -8/Garrison | Discovered new exit (range 11) 4822 | -8/Garrison | Triggered checkpoint 4891 | -8/Garrison | Discovered new exit (range 13) 4936 | -8/Garrison | Installed Relay Interface Framework 5028 | -8/Garrison | Triggered checkpoint 5067 | -8/Garrison | Garrison Relay disabled 5326 | -8/Garrison | Triggered checkpoint 5375 | -8/Garrison | Lost 3 parts (1n2w) 5385 | -8/Garrison | Garrison Relay disabled 5667 | -8/Garrison | Garrison Relay disabled 6006 | -8/Garrison | Discovered new exit (range 9) 6028 | -8/Garrison | Entered Materials 6108 | -8/Materials | Repaired Wheel 6135 | -8/Materials | Repaired Propulsion Shielding 6523 | -8/Materials | Core integrity fell below 50% 6693 | -8/Materials | Discovered new exit (range 16) 6757 | -8/Materials | Central database locked down 6774 | -8/Materials | Build established: Hacker-Mutant 7516 | -8/Materials | Repaired Hyp. Gauss Rifle 7556 | -8/Materials | Repaired Shock Bomb Launcher 7583 | -8/Materials | Repaired Propulsion Shielding 7753 | -8/Materials | Discovered new exit (range 15) 7975 | -8/Materials | Identified exit to Garrison 8000 | -8/Materials | Entered Garrison 8014 | -8/Garrison | Build established: Bothacker-Mutant 8428 | -8/Garrison | Triggered checkpoint 8456 | -8/Garrison | Triggered checkpoint 8472 | -8/Garrison | Triggered checkpoint 8542 | -8/Garrison | Discovered new exit (range 9) 8576 | -8/Garrison | Expanded RIF knowledge: Watcher Feeds 8589 | -8/Garrison | Entered Factory 8589 | -7/Factory | Accompanied by 4 allies 8589 | -7/Factory | Evolved 2 slots: Utility x2 9128 | -7/Factory | Identified exit to Garrison 9128 | -7/Factory | Entered Garrison 9128 | -7/Garrison | Accompanied by 3 allies 9243 | -7/Garrison | Triggered checkpoint 9282 | -7/Garrison | Garrison Relay disabled 9378 | -7/Garrison | Triggered checkpoint 9485 | -7/Garrison | Discovered new exit (range 13) 9534 | -7/Garrison | Expanded RIF knowledge: Coupler Efficiency 10015 | -7/Garrison | Entered Factory 10015 | -7/Factory | Accompanied by 3 allies 10304 | -7/Factory | Identified exit to Garrison 10306 | -7/Factory | Entered Garrison 10306 | -7/Garrison | Accompanied by 2 allies 10384 | -7/Garrison | Triggered checkpoint 10523 | -7/Garrison | Garrison Relay disabled 10648 | -7/Garrison | Triggered checkpoint 10692 | -7/Garrison | Triggered checkpoint 10721 | -7/Garrison | Triggered checkpoint 10874 | -7/Garrison | Discovered new exit (range 14) 10926 | -7/Garrison | Expanded RIF knowledge: Coupler Efficiency 10941 | -7/Garrison | Entered Factory 10941 | -6/Factory | Evolved 2 slots: Utility x2 10978 | -6/Factory | Repaired Shock Bomb Launcher 11221 | -6/Factory | Build established: Botlord-Mutant 12051 | -6/Factory | Sucked down chute 12051 | -6/Factory | Entered Waste 12052 | -6/Waste | Met a frightened Derelict 12066 | -6/Waste | EMP discharged 12066 | -6/Waste | System corruption reached 10% 12071 | -6/Waste | Spotted C-40 Crusher 12111 | -6/Waste | Spotted C-40 Crusher 12135 | -6/Waste | Spotted C-40 Crusher 12146 | -6/Waste | Spotted C-40 Crusher 12163 | -6/Waste | Spotted C-40 Crusher 12166 | -6/Waste | EMP discharged 12193 | -6/Waste | Discovered new exit (range 16) 12209 | -6/Waste | Spotted C-40 Crusher 12235 | -6/Waste | Entered Factory 12395 | -6/Factory | Identified exit to Lower Caves 12435 | -6/Factory | Identified exit to Garrison 12435 | -6/Factory | Entered Garrison 12460 | -6/Garrison | Triggered checkpoint 12570 | -6/Garrison | Triggered checkpoint 12788 | -6/Garrison | Triggered checkpoint 12928 | -6/Garrison | Discovered new exit (range 10) 13016 | -6/Garrison | Triggered checkpoint 13064 | -6/Garrison | Lost 20 parts (1p2n14u3w) 13146 | -6/Garrison | Triggered checkpoint 13224 | -6/Garrison | Destroyed 8 combat bots 13354 | -6/Garrison | Build established: Hacker-Mutant 13361 | -6/Garrison | Discovered new exit (range 13) 13405 | -6/Garrison | Triggered checkpoint 13486 | -6/Garrison | Discovered new exit (range 10) 13503 | -6/Garrison | Expanded RIF knowledge: Zone Cloak 13508 | -6/Garrison | Entered Factory 13656 | -6/Factory | Fabricated L-41 Fighter (x3) 13672 | -6/Factory | Discovered exit to Lower Caves (range 19) 13723 | -6/Factory | Fabricated L-41 Fighter (x3) 13743 | -6/Factory | Identified exit to Garrison 13743 | -6/Factory | Entered Garrison 13743 | -6/Garrison | Accompanied by 2 allies 13749 | -6/Garrison | Expanded RIF knowledge: Structural Interface 13977 | -6/Garrison | Triggered checkpoint 13982 | -6/Garrison | Triggered checkpoint 13989 | -6/Garrison | Core integrity fell below 50% 14048 | -6/Garrison | Triggered checkpoint 14190 | -6/Garrison | Discovered new exit (range 13) 14278 | -6/Garrison | Triggered checkpoint 14314 | -6/Garrison | Garrison Relay disabled 14583 | -6/Garrison | Entered Factory 14583 | -5/Factory | Accompanied by 2 allies 14583 | -5/Factory | Evolved 2 slots: Propulsion x2 14632 | -5/Factory | Build established: Botlord-Mutant 15421 | -5/Factory | Discovered new exit (range 8) 15525 | -5/Factory | Fabricated L-41 Fighter (x3) 15734 | -5/Factory | Build established: Wizard-Mutant 15954 | -5/Factory | Identified exit to Garrison 15954 | -5/Factory | Entered Garrison 15984 | -5/Garrison | Lost 9 parts (3n4u2w) 16000 | -5/Garrison | Garrison Relay disabled 16026 | -5/Garrison | Triggered checkpoint 16292 | -5/Garrison | Spotted B-75 Beast 16304 | -5/Garrison | Build established: Botlord-Mutant 16590 | -5/Garrison | Triggered checkpoint 16590 | -5/Garrison | Triggered checkpoint 16595 | -5/Garrison | Core integrity fell below 50% 16645 | -5/Garrison | Core integrity fell below 20% 16653 | -5/Garrison | Destroyed by G-50 Soldier with Heavy Laser Last Messages --------------- 16613_ Slug penetrates Wall. 16613_ Penetrated by Slug. 16613_ VTOL Module destroyed. 16616_ Penetrated by Slug. 16616_ Relay Coupler [Sentry] destroyed. 16616_ RIF reveals location of phase wall. 16631_ Hvy. Pick destroyed. 16633_ Carbon-fiber Leg destroyed. 16633_ RIF reveals location of phase wall. 16639_ Penetrated by Slug. 16642_ Slug penetrates Wall. 16644_ Penetrated by Slug. 16644_ System Shield destroyed. 16645_ Relay Coupler [ARC] destroyed. 16647_ Slug penetrates Wall. 16648_ Dropped Med. Storage Unit. 16650_ Penetrated by Slug. 16651_ Adv. Datajack destroyed. 16651_ Acquired Med. Storage Unit. 16653_ Penetrated by Slug. Map ----- +----------------------------------------------------+ | ?????????????????????????????????????????????? | | ?????????????????????????????????????????????? | | ?????????????????????????????????????????????? | | ?????????????????????????????????????????????? | | ?????????????????????????????????????????????? | | ?????????????????????????????????????????????? | | ?????????????????????????????????????????????? | | ?????????????????????????????????????????????? | | ?????????????????????????????????????????????? | | ?????????????????????????????????????????????? | | ?????????????????????????????????????????????? | | ?????????????????????????????????????????????? | | ?????????????????????????????????????????????? | | ?????????????????????????????????????????????? | | ?????????????????????????????????????????????? | | ???????????????????????????????????##????????? | | ??????????????????????????????????? #???????? | | ???????????????????????????????????# #???????? | | ???????????????????????????????ggg?# #???????? | | ???????????????????????????????????# #???????? | | ???????????????????????????????????# #???????? | | ???????????????????##??????????????# #???????? | | ????????############ ###########+### ######### | | ????????# Y g | | ????????# g g | | ????????# @ g g | | ?????????????#######+###########h###h###### | | ???????????????????????????????#g#?# #????# | | ???????????????????????????????# #?# #????# | | ???????????????????????????????# #?# ###### | | ???????????????????????????????# ?+ | | ???????????????????????????????# #?######## | | ???????????????????????????????# #????????# | | ???????????????????????????????# #????????# | | ????????????????????Y??????????# #????????# | | ???????????????????????????????? ?????????# | | ???????????????????????????????? ?????????# | | ???????????????????????????????? ?????????# | | ???????????????????????????????? ?????????+ | | ????????????????????????????????#?????????# | | ??????????????????????????????????????????# | | ??????????????????????????Y???????????????# | | ??????????????????????????????????????????" | | ??????????????????????????????????????????" | | ??????????????????????????????????????????" | | ??????????????????????????????????????????" | | ??????????????????????????????????????????# | | ??????????????????????????????????????????# | | ??????????????????????????????????????????+ | | ??????????????????????????????????????????+ | +----------------------------------------------------+ Best States ------------- Heat Dissipation 40 Energy Generation 18 Energy Capacity 310 Matter Stores 500 Matter Capacity 500 Sight Range 18 Terrain Scan Density 85 Armor Coverage 225 Resistance: KI 20 Resistance: TH 20 Resistance: EX 20 Resistance: EM 20 Resistance: I 20 Resistance: S 20 Resistance: P 20 Propulsion Shielding 66 Evasion (%) 55 Targeting Accuracy 5 Recoil Reduction 2 Particle Charging 15 Offensive Hacking 50 Defensive Hacking 20 Relay Coupler Types 185 Relay Coupler Value 4 Item Schematics ----------------- Huge Storage Unit | -10/Materials | Hacked Hcp. Storage Unit | -10/Materials | Hacked Cargo Storage Unit | -10/Materials | Hacked Datajack | -8/Materials | Hacked Adv. Treads | -8/Materials | Hacked Micro-nuke Launcher | -6/Factory | Hacked Centrium Wheel | -5/Factory | Hacked Robot Schematics ------------------ None Fabricated ------------ L-41 Fighter | x3 | -6/Factory | Preloaded L-41 Fighter | x3 | -6/Factory | Preloaded L-41 Fighter | x3 | -5/Factory | Preloaded Alien Tech Used ----------------- None Achievements -------------- None Challenges ------------ None Game ------ Seed XenonCargoDetonator Manual? 0 Play Time 01:51:36 Cumulative 284.2 hours Start 2021.02.20 @ 06:57:17 End 2021.02.20 @ 15:39:28 Sessions 3 Manual Loads 0 Difficulty Adventurer Special Mode None Game No. 282 Rogue 132 Adventurer 72 Explorer 78 Win Type - Total 22 Types 16/0/4/2/0/0/0/0/0 Lore% 78 Gallery% 86 Achievement% 67 Wizard Run 0 Options --------- ASCII 1 Keyboard 0 Movement Numpad Keybinds 0 Fullscreen 2 Font 18/TerminusBold Map View 76x50 Tactical HUD 1 Map Filters NONE Filters NONE Steam 1 RUN: 3dea6a2d-e127-44f4-88d4-df2554c79e94